fUSD/lending_fUSD_20251017
["ID","MTS","AMOUNT","RATE_DAILY","PERIOD"]
[391638504,1760712689816,-721.32,0.00027397,2]
[391638505,1760712689825,-721.32,0.00027397,2]
[391638506,1760712689834,-721.32,0.00027397,2]
[391638507,1760712689843,-721.32,0.00027397,2]
[391638508,1760712689855,-721.32,0.00027397,2]
[391638509,1760712689865,-721.32,0.00027397,2]
[391638510,1760712689875,-505.59,0.00027397,2]
[391638511,1760712689886,-837.59,0.00027397,2]
[391638512,1760712689895,-2000.0,0.00027397,13]
[391638513,1760712689905,-2355.17,0.00027397,2]
[391638514,1760712689915,-513.36,0.00027397,2]
[391638515,1760712689925,-500.0,0.00027397,2]
[391638516,1760712689934,-500.0,0.00027397,2]
[391638517,1760712689944,-500.0,0.00027397,2]
[391638518,1760712689953,-500.0,0.00027397,2]
[391638519,1760712689963,-1192.44,0.00027397,2]
[391638520,1760712689973,-654.23,0.00027397,2]
[391638521,1760712689982,-500.0,0.00027397,2]
[391638522,1760712689992,-500.0,0.00027397,2]
[391638523,1760712690001,-2969.48,0.00027397,2]
[391638524,1760712690011,-500.0,0.00027397,2]
[391638525,1760712690020,-500.0,0.00027397,2]
[391638526,1760712690030,-500.17,0.00027397,2]
[391638527,1760712690040,-1595.99,0.00027397,2]
[391638528,1760712690052,-500.0,0.00027397,2]
[391638529,1760712690062,-2220.63,0.00027397,2]
[391638530,1760712690071,-500.0,0.00027397,2]
[391638531,1760712690081,-500.0,0.00027397,2]
[391638532,1760712690091,-554.04,0.00027397,2]
[391638533,1760712690100,-619.82,0.00027397,2]
[391638534,1760712690113,-950.66,0.00027397,2]
[391638535,1760712690122,-1855.6,0.00027397,2]
[391638536,1760712690132,-722.3,0.00027397,2]
[391638537,1760712690141,-359.78457241,0.00027397,2]
[391638538,1760712690151,-500.0,0.00027397,2]
[391638539,1760712690161,-500.0,0.00027397,2]
[391638540,1760712690171,-1437.69,0.00027397,2]
[391638541,1760712690180,-2212.04,0.00027397,2]
[391638542,1760712690190,-500.0,0.00027397,2]
[391638543,1760712690199,-151.0,0.00027397,7]
[391638544,1760712690209,-1120.11,0.00027397,2]
[391638545,1760712690219,-500.0,0.00027397,2]
[391638546,1760712690228,-500.0,0.00027397,2]
[391638547,1760712690238,-500.0,0.00027397,2]
[391638548,1760712690247,-854.16,0.00027397,2]
[391638549,1760712690256,-151.0,0.00027397,7]
[391638550,1760712690266,-632.58,0.00027397,2]
[391638551,1760712690275,-500.0,0.00027397,2]
[391638552,1760712690285,-870.27,0.00027397,2]
[391638553,1760712690294,-500.0,0.00027397,2]
[391638554,1760712690303,-735.48,0.00027397,2]
[391638555,1760712690312,-500.0,0.00027397,2]
[391638556,1760712690322,-1633.1,0.00027397,2]
[391638557,1760712690332,-500.0,0.00027397,2]
[391638558,1760712690342,-500.0,0.00027397,2]
[391638559,1760712690355,-500.0,0.00027397,2]
[391638560,1760712690366,-500.0,0.00027397,2]
[391638561,1760712690377,-500.0,0.00027397,2]
[391638562,1760712690387,-852.2,0.00027397,2]
[391638563,1760712690397,-665.63,0.00027397,2]
[391638564,1760712690407,-733.45,0.00027397,2]
[391638565,1760712690417,-2292.25,0.00027397,2]
[391638566,1760712690426,-500.0,0.00027397,2]
[391638567,1760712690436,-957.62,0.00027397,2]
[391638568,1760712690446,-291.16742,0.00027397,7]
[391638569,1760712690455,-1000.0,0.00027397,30]
[391638570,1760712690465,-1000.0,0.00027397,30]
[391638571,1760712690474,-1000.0,0.00027397,30]
[391638572,1760712690484,-1000.0,0.00027397,30]
[391638573,1760712690494,-1000.0,0.00027397,30]
[391638574,1760712690503,-1000.0,0.00027397,30]
[391638575,1760712690513,-1000.0,0.00027397,30]
[391638576,1760712690523,-1000.0,0.00027397,30]
[391638577,1760712690533,-1000.0,0.00027397,30]
[391638578,1760712690542,-1000.0,0.00027397,30]
[391638579,1760712690551,-1000.0,0.00027397,30]
[391638580,1760712690561,-163.375438,0.00027397,7]
[391638581,1760712690571,-2000.0,0.00027397,30]
[391638582,1760712690580,-151.0,0.00027397,7]
[391638583,1760712690590,-2000.0,0.00027397,30]
[391638584,1760712690599,-2000.0,0.00027397,30]
[391638585,1760712690610,-2000.0,0.00027397,30]
[391638586,1760712690621,-2000.0,0.00027397,30]
[391638587,1760712690631,-2000.0,0.00027397,30]
[391638588,1760712690640,-2000.0,0.00027397,30]
[391638589,1760712690650,-151.0,0.00027397,7]
[391638590,1760712690661,-538.29653492,0.00027397,2]
[391638591,1760712690670,-151.0,0.00027397,7]
[391638592,1760712690680,-645.32,0.00027397,2]
[391638593,1760712690689,-503.98658772,0.00027397,2]
[391638594,1760712690701,-1164.89,0.00027397,2]
[391638595,1760712690710,-4111.23,0.00027397,2]
[391638596,1760712690719,-1020.03,0.00027397,2]
[391638597,1760712690729,-2210.79,0.00027397,2]
[391638598,1760712690738,-500.0,0.00027397,2]
[391638599,1760712690747,-151.0,0.00027397,7]
[391638600,1760712690756,-500.0,0.00027397,2]
[391638601,1760712690766,-907.389663,0.00027397,7]
[391638602,1760712690776,-1365.45,0.00027397,2]
[391638603,1760712690785,-907.389663,0.00027397,7]
[391638604,1760712690794,-151.0,0.00027397,7]
[391638605,1760712690805,-907.389663,0.00027397,7]
[391638606,1760712690814,-907.389657,0.00027397,7]
[391638607,1760712690823,-168.18039579,0.00027397,2]
[391638608,1760712690832,-1008.76,0.00027397,2]
[391638609,1760712690842,-1563.72,0.00027397,2]
[391638610,1760712690852,-500.0,0.00027397,2]
[391638611,1760712690863,-1294.16,0.00027397,2]
[391638612,1760712690873,-164.95351821,0.00027397,2]
[391638613,1760712690883,-616.97,0.00027397,2]
[391638614,1760712690892,-2395.85,0.00027397,2]
[391638615,1760712690902,-1000.0,0.00027397,2]
[391638616,1760712690911,-1973.58,0.00027397,2]
[391638617,1760712690920,-2145.9,0.00027397,2]
[391638618,1760712690929,-1133.0,0.00027397,2]
[391638619,1760712690939,-897.1,0.00027397,2]
[391638620,1760712690948,-500.0,0.00027397,2]
[391638621,1760712690959,-2887.99,0.00027397,2]
[391638622,1760712690969,-500.0,0.00027397,2]
[391638623,1760712690980,-975.46,0.00027397,2]
[391638624,1760712690990,-500.0,0.00027397,2]
[391638625,1760712691000,-500.0,0.00027397,2]
[391638626,1760712691009,-1037.54,0.00027397,2]
[391638627,1760712691019,-156.759528,0.00027397,7]
[391638628,1760712691028,-151.0,0.00027397,7]
[391638629,1760712691038,-156.759528,0.00027397,7]
[391638630,1760712691047,-3250.401809,0.00027397,7]
[391638631,1760712691056,-156.759528,0.00027397,7]
[391638632,1760712691065,-509.43363272,0.00027397,2]
[391638633,1760712691074,-3250.401809,0.00027397,7]
[391638634,1760712691083,-449.617202,0.00027397,7]
[391638635,1760712691093,-156.759536,0.00027397,7]
[391638636,1760712691102,-3250.401809,0.00027397,7]
[391638637,1760712691113,-449.617202,0.00027397,7]
[391638638,1760712691122,-500.0,0.00027397,2]
[391638639,1760712691132,-3250.401801,0.00027397,7]
[391638640,1760712691141,-449.617202,0.00027397,7]
[391638641,1760712691150,-500.0,0.00027397,2]
[391638642,1760712691160,-449.61719231,0.00027397,7]
[391638643,1760712691170,-151.0,0.00027397,7]
[391638644,1760712691179,-151.0,0.00027397,7]
[391638645,1760712691188,-508.923238,0.00027397,7]
[391638646,1760712691198,-815.66,0.00027397,2]
[391638647,1760712691207,-508.923238,0.00027397,7]
[391638648,1760712691217,-220.759184,0.00027397,7]
[391638649,1760712691226,-508.923238,0.00027397,7]
[391638650,1760712691236,-220.759184,0.00027397,7]
[391638651,1760712691246,-508.92323416,0.00027397,7]
[391638652,1760712691412,-220.759184,0.00027397,7]
[391638653,1760712691428,-500.0,0.00027397,2]
[391638654,1760712691438,-220.759186,0.00027397,7]
[391638655,1760712691448,-500.0,0.00027397,2]
[391638656,1760712691459,-500.0,0.00027397,2]
[391638657,1760712691468,-151.0,0.00027397,7]
[391638658,1760712691478,-500.0,0.00027397,2]
[391638659,1760712691488,-2321.61,0.00027397,2]
[391638660,1760712691498,-4259.73,0.00027397,2]
[391638661,1760712691508,-500.0,0.00027397,2]
[391638662,1760712691518,-200.0,0.00027397,2]
[391638663,1760712691528,-500.0,0.00027397,60]
[391638664,1760712691538,-151.0,0.00027397,7]
[391638665,1760712691549,-151.0,0.00027397,7]
[391638666,1760712691559,-1588.12,0.00027397,2]
[391638667,1760712691569,-165.472857,0.00027397,7]
[391638668,1760712691579,-165.472857,0.00027397,7]
[391638669,1760712691589,-561.150445,0.00027397,7]
[391638670,1760712691598,-165.472857,0.00027397,7]
[391638671,1760712691608,-2127.98,0.00027397,2]
[391638672,1760712691622,-561.150445,0.00027397,7]
[391638673,1760712691631,-165.472861,0.00027397,7]
[391638674,1760712691641,-561.150445,0.00027397,7]
[391638675,1760712691655,-151.0,0.00027397,7]
[391638676,1760712691664,-500.0,0.00027397,2]
[391638677,1760712691674,-561.150441,0.00027397,7]
[391638678,1760712691684,-151.0,0.00027397,7]
[391638679,1760712691696,-151.0,0.00027397,7]
[391638680,1760712691707,-500.0,0.00027397,2]
[391638681,1760712691716,-1336.95,0.00027397,2]
[391638682,1760712691726,-169.36984,0.00027397,7]
[391638683,1760712691735,-151.0,0.00027397,7]
[391638684,1760712691744,-500.0,0.00027397,2]
[391638685,1760712691754,-151.0,0.00027397,7]
[391638686,1760712691764,-151.0,0.00027397,7]
[391638687,1760712691774,-151.0,0.00027397,7]
[391638688,1760712691784,-151.0,0.00027397,7]
[391638689,1760712691794,-500.0,0.00027397,2]
[391638690,1760712691804,-151.0,0.00027397,7]
[391638691,1760712691814,-151.0,0.00027397,7]
[391638692,1760712691824,-500.0,0.00027397,2]
[391638693,1760712691834,-276.490798,0.00027397,7]
[391638694,1760712691843,-911.177948,0.00027397,7]
[391638695,1760712691853,-276.490798,0.00027397,7]
[391638696,1760712691864,-911.177948,0.00027397,7]
[391638697,1760712691874,-276.490798,0.00027397,7]
[391638698,1760712691884,-911.177948,0.00027397,7]
[391638699,1760712691894,-276.49079,0.00027397,7]
[391638700,1760712691904,-201.0,0.00027397,2]
[391638701,1760712691914,-33932.04,0.00027397,2]
[391638702,1760712691924,-1100.49,0.00027397,16]
[391638703,1760712691934,-525.55154788,0.00027397,2]
[391638704,1760712691944,-300.0,0.00027397,2]
[391638705,1760712691955,-2780.06,0.000274,7]
[391638706,1760712691965,-2784.74,0.000274,2]
[391638707,1760712691975,-24566.88,0.000274,2]
[391638708,1760712691985,-189.622013,0.000274,30]
[391638709,1760712691995,-189.622013,0.000274,30]
[391638710,1760712692006,-189.622013,0.000274,30]
[391638711,1760712692015,-410.422113,0.000274,30]
[391638712,1760712692025,-410.422113,0.000274,30]
[391638713,1760712692035,-189.622017,0.000274,30]
[391638714,1760712692045,-410.422113,0.000274,30]
[391638715,1760712692055,-410.422111,0.000274,30]
[391638716,1760712692065,-322.86195,0.000274,30]
[391638717,1760712692075,-322.86195,0.000274,30]
[391638718,1760712692085,-192.25074,0.000274,30]
[391638719,1760712692095,-322.86195,0.000274,30]
[391638720,1760712692107,-192.25074,0.000274,30]
[391638721,1760712692117,-322.861959,0.000274,30]
[391638722,1760712692128,-192.25074,0.000274,30]
[391638723,1760712692138,-192.250738,0.000274,30]
[391638724,1760712692149,-151.0,0.000274,30]
[391638725,1760712692160,-151.0,0.000274,30]
[391638726,1760712692170,-340.681494,0.000274,30]
[391638727,1760712692181,-340.681494,0.000274,30]
[391638728,1760712692191,-340.681494,0.000274,30]
[391638729,1760712692201,-340.681501,0.000274,30]
[391638730,1760712692211,-403.699079,0.000274,30]
[391638731,1760712692221,-403.699079,0.000274,30]
[391638732,1760712692231,-403.699079,0.000274,30]
[391638733,1760712692241,-151.0,0.000274,30]
[391638734,1760712692251,-403.699086,0.000274,30]
[391638735,1760712692261,-236.67927,0.000274,30]
[391638736,1760712692271,-151.0,0.000274,30]
[391638737,1760712692281,-236.67927,0.000274,30]
[391638738,1760712692291,-151.0,0.000274,30]
[391638739,1760712692300,-151.0,0.000274,30]
[391638740,1760712692311,-236.67927,0.000274,30]
[391638741,1760712692320,-151.0,0.000274,30]
[391638742,1760712692330,-236.679266,0.000274,30]
[391638743,1760712692340,-151.0,0.000274,30]
[391638744,1760712692349,-1226.0,0.000274,2]
[391638745,1760712692362,-184.714614,0.000274,30]
[391638746,1760712692372,-184.714614,0.000274,30]
[391638747,1760712692382,-1381.874064,0.000274,30]
[391638748,1760712692392,-184.714614,0.000274,30]
[391638749,1760712692402,-1381.874064,0.000274,30]
[391638750,1760712692412,-184.714608,0.000274,30]
[391638751,1760712692422,-1381.874064,0.000274,30]
[391638752,1760712692431,-1381.874064,0.000274,30]
[391638753,1760712692443,-165.077932,0.000274,30]
[391638754,1760712692453,-151.0,0.000274,30]
[391638755,1760712692463,-165.077932,0.000274,30]
[391638756,1760712692472,-764.541146,0.000274,30]
[391638757,1760712692482,-287.75657,0.000274,30]
[391638758,1760712692492,-165.077932,0.000274,30]
[391638759,1760712692502,-764.541146,0.000274,30]
[391638760,1760712692511,-165.077934,0.000274,30]
[391638761,1760712692521,-764.541146,0.000274,30]
[391638762,1760712692530,-764.541142,0.000274,30]
[391638763,1760712692541,-500.0,0.00027403,120]
[391638764,1760712692551,-500.0,0.00027403,120]
[391638765,1760712692560,-529.15502553,0.00027425,2]
[391638766,1760712692571,-500.0,0.00027452,60]
[391638767,1760712692581,-150.0,0.00027482,2]
[391638768,1760712692591,-500.0,0.00027507,60]
[391638769,1760712692600,-529.15502553,0.00027534,2]
[391638770,1760712692611,-500.0,0.00027561,60]
[391638771,1760712692623,-152.0,0.00027579,4]
[391638772,1760712692633,-500.0,0.00027616,60]
[391638773,1760712692643,-529.15502553,0.00027644,2]
[391638774,1760712692652,-500.0,0.00027671,60]
[391638775,1760712692663,-500.0,0.00027671,17]
[391638776,1760712692673,-522.4,0.00027671,17]
[391638777,1760712692683,-500.0,0.00027671,17]
[391638778,1760712692692,-869.21,0.00027671,17]
[391638779,1760712692705,-1021.91,0.00027671,17]
[391638780,1760712692714,-500.0,0.00027671,17]
[391638781,1760712692724,-537.34,0.00027671,17]
[391638782,1760712692734,-1474.93,0.00027671,17]
[391638783,1760712692743,-666.77,0.00027671,17]
[391638784,1760712692752,-500.0,0.00027671,17]
[391638785,1760712692762,-500.0,0.00027671,2]
[391638786,1760712692771,-500.0,0.00027671,17]
[391638787,1760712692781,-334.51371137,0.00027671,17]
[391638788,1760712692791,-1074.19,0.00027671,17]
[391638789,1760712692800,-324.05,0.00027671,17]
[391638790,1760712692810,-500.0,0.00027671,17]
[391638791,1760712692820,-1137.89901868,0.00027671,7]
[391638792,1760712692830,-500.0,0.00027671,17]
[391638793,1760712692839,-1458.22,0.00027671,7]
[391638794,1760712692848,-151.0,0.00027671,30]
[391638795,1760712692860,-500.0,0.00027671,17]
[391638796,1760712692870,-201.792584,0.00027671,30]
[391638797,1760712692880,-151.0,0.00027671,30]
[391638798,1760712692889,-151.0,0.00027671,30]
[391638799,1760712692899,-151.0,0.00027671,30]
[391638800,1760712692908,-721.32,0.00027671,2]
[391638801,1760712692918,-151.0,0.00027671,30]
[391638802,1760712692927,-505.59,0.00027671,2]
[391638803,1760712692937,-837.59,0.00027671,17]
[391638804,1760712692947,-2032.31861983,0.00027671,13]
[391638805,1760712692958,-2355.17,0.00027671,17]
[391638806,1760712692968,-513.36,0.00027671,17]
[391638807,1760712692978,-500.0,0.00027671,17]
[391638808,1760712692989,-500.0,0.00027671,17]
[391638809,1760712692999,-500.0,0.00027671,17]
[391638810,1760712693008,-500.0,0.00027671,17]
[391638811,1760712693018,-1192.44,0.00027671,17]
[391638812,1760712693028,-654.23,0.00027671,17]
[391638813,1760712693038,-500.0,0.00027671,17]
[391638814,1760712693048,-350.41647346,0.00027671,17]
[391638815,1760712693058,-2969.48,0.00027671,17]
[391638816,1760712693068,-500.0,0.00027671,17]
[391638817,1760712693078,-500.0,0.00027671,17]
[391638818,1760712693089,-500.17,0.00027671,17]
[391638819,1760712693099,-1595.99,0.00027671,17]
[391638820,1760712693109,-500.0,0.00027671,17]
[391638821,1760712693119,-2220.63,0.00027671,17]
[391638822,1760712693129,-500.0,0.00027671,17]
[391638823,1760712693139,-500.0,0.00027671,17]
[391638824,1760712693150,-554.04,0.00027671,17]
[391638825,1760712693159,-619.82,0.00027671,17]
[391638826,1760712693170,-950.66,0.00027671,17]
[391638827,1760712693180,-1855.6,0.00027671,17]
[391638828,1760712693189,-722.3,0.00027671,17]
[391638829,1760712693199,-500.0,0.00027671,17]
[391638830,1760712693209,-500.0,0.00027671,17]
[391638831,1760712693218,-1437.69,0.00027671,17]
[391638832,1760712693228,-2212.04,0.00027671,17]
[391638833,1760712693238,-500.0,0.00027671,17]
[391638834,1760712693247,-1120.11,0.00027671,17]
[391638835,1760712693257,-500.0,0.00027671,17]
[391638836,1760712693267,-500.0,0.00027671,17]
[391638837,1760712693277,-500.0,0.00027671,17]
[391638838,1760712693286,-854.16,0.00027671,17]
[391638839,1760712693296,-632.58,0.00027671,17]
[391638840,1760712693306,-151.0,0.00027671,30]
[391638841,1760712693316,-500.0,0.00027671,17]
[391638842,1760712693326,-151.0,0.00027671,30]
[391638843,1760712693336,-151.0,0.00027671,30]
[391638844,1760712693347,-242.413709,0.00027671,30]
[391638845,1760712693359,-272.307507,0.00027671,30]
[391638846,1760712693370,-272.307507,0.00027671,30]
[391638847,1760712693380,-151.0,0.00027671,30]
[391638848,1760712693390,-151.0,0.00027671,30]
[391638849,1760712693400,-272.307507,0.00027671,30]
[391638850,1760712693410,-151.0,0.00027671,30]
[391638851,1760712693420,-151.0,0.00027671,30]
[391638852,1760712693430,-272.307505,0.00027671,30]
[391638853,1760712693439,-151.0,0.00027671,30]
[391638854,1760712693449,-151.0,0.00027671,15]
[391638855,1760712693458,-151.0,0.00027671,30]
[391638856,1760712693468,-191.010954,0.00027671,30]
[391638857,1760712693478,-151.0,0.00027671,30]
[391638858,1760712693488,-870.27,0.00027671,17]
[391638859,1760712693498,-200.59618392,0.00027671,17]
[391638860,1760712693507,-735.48,0.00027671,17]
[391638861,1760712693517,-500.0,0.00027671,17]
[391638862,1760712693527,-1633.1,0.00027671,17]
[391638863,1760712693537,-500.0,0.00027671,2]
[391638864,1760712693546,-500.0,0.00027671,17]
[391638865,1760712693556,-500.0,0.00027671,17]
[391638866,1760712693565,-500.0,0.00027671,17]
[391638867,1760712693575,-500.0,0.00027671,17]
[391638868,1760712693585,-852.2,0.00027671,17]
[391638869,1760712693595,-665.63,0.00027671,17]
[391638870,1760712693608,-733.45,0.00027671,17]
[391638871,1760712693618,-2292.25,0.00027671,17]
[391638872,1760712693629,-500.0,0.00027671,17]
[391638873,1760712693641,-957.62,0.00027671,17]
[391638874,1760712693651,-1000.0,0.00027671,30]
[391638875,1760712693662,-645.32,0.00027671,17]
[391638876,1760712693672,-1164.89,0.00027671,14]
[391638877,1760712693681,-4111.23,0.00027671,2]
[391638878,1760712693690,-1020.03,0.00027671,17]
[391638879,1760712693700,-2210.79,0.00027671,17]
[391638880,1760712693711,-500.0,0.00027671,17]
[391638881,1760712693721,-500.0,0.00027671,17]
[391638882,1760712693730,-1365.45,0.00027671,17]
[391638883,1760712693740,-1008.76,0.00027671,17]
[391638884,1760712693750,-1563.72,0.00027671,17]
[391638885,1760712693759,-500.0,0.00027671,17]
[391638886,1760712693768,-1294.16,0.00027671,14]
[391638887,1760712693777,-616.97,0.00027671,17]
[391638888,1760712693787,-2395.85,0.00027671,17]
[391638889,1760712693796,-1000.0,0.00027671,17]
[391638890,1760712693805,-1973.58,0.00027671,17]
[391638891,1760712693814,-2145.9,0.00027671,17]
[391638892,1760712693824,-1133.0,0.00027671,17]
[391638893,1760712693833,-897.1,0.00027671,17]
[391638894,1760712693843,-552.56,0.00027671,17]
[391638895,1760712693854,-2887.99,0.00027671,17]
[391638896,1760712693865,-500.0,0.00027671,17]
[391638897,1760712693875,-975.46,0.00027671,17]
[391638898,1760712693884,-500.0,0.00027671,17]
[391638899,1760712693894,-500.0,0.00027671,17]
[391638900,1760712693903,-1037.54,0.00027671,17]
[391638901,1760712693913,-500.0,0.00027671,17]
[391638902,1760712693922,-500.0,0.00027671,17]
[391638903,1760712693931,-815.66,0.00027671,17]
[391638904,1760712693944,-500.0,0.00027671,17]
[391638905,1760712693959,-500.0,0.00027671,6]
[391638906,1760712693979,-500.0,0.00027671,17]
[391638907,1760712693991,-500.0,0.00027671,17]
[391638908,1760712694000,-2321.61,0.00027671,17]
[391638909,1760712694010,-4259.73,0.00027671,17]
[391638910,1760712694020,-209.92,0.00027671,7]
[391638911,1760712694030,-500.0,0.00027671,17]
[391638912,1760712694040,-1588.12,0.00027671,17]
[391638913,1760712694050,-2127.98,0.00027671,17]
[391638914,1760712694059,-500.0,0.00027671,17]
[391638915,1760712694068,-500.0,0.00027671,17]
[391638916,1760712694078,-1336.95,0.00027671,17]
[391638917,1760712694087,-500.0,0.00027671,17]
[391638918,1760712694096,-500.0,0.00027671,17]
[391638919,1760712694106,-500.0,0.00027671,17]
[391638920,1760712694115,-150.0,0.00027701,2]
[391638921,1760712694125,-500.0,0.00027726,60]
[391638922,1760712694136,-529.15502553,0.00027753,2]
[391638923,1760712694145,-397.11373628,0.00027765,2]
[391638924,1760712694156,-500.0,0.00027781,60]
[391638925,1760712694166,-150.0,0.00027788,2]
[391638926,1760712694175,-150.0,0.00027788,2]
[391638927,1760712694337,-8957.08,0.000278,7]
[391638928,1760712694348,-168.0,0.00027809,2]
[391638929,1760712694360,-500.0,0.00027835,60]
[391638930,1760712694370,-500.0,0.0002789,60]
[391638931,1760712694379,-169.62,0.00027901,2]
[391638932,1760712694388,-197.5121324,0.00027911,2]
[391638933,1760712694398,-500.0,0.00027945,60]
[391638934,1760712694408,-500.0,0.00027945,17]
[391638935,1760712694417,-522.4,0.00027945,17]
[391638936,1760712694427,-500.0,0.00027945,17]
[391638937,1760712694437,-869.21,0.00027945,17]
[391638938,1760712694446,-1021.91,0.00027945,17]
[391638939,1760712694459,-500.0,0.00027945,17]
[391638940,1760712694479,-537.34,0.00027945,17]
[391638941,1760712694489,-1474.93,0.00027945,17]
[391638942,1760712694498,-666.77,0.00027945,17]
[391638943,1760712694508,-500.0,0.00027945,17]
[391638944,1760712694518,-500.0,0.00027945,2]
[391638945,1760712694527,-500.0,0.00027945,17]
[391638946,1760712694537,-1074.19,0.00027945,17]
[391638947,1760712694546,-300.98716761,0.00027945,17]
[391638948,1760712694556,-500.0,0.00027945,17]
[391638949,1760712694565,-151.0,0.00027945,30]
[391638950,1760712694576,-151.0,0.00027945,30]
[391638951,1760712694585,-151.0,0.00027945,30]
[391638952,1760712694596,-151.0,0.00027945,30]
[391638953,1760712694607,-151.0,0.00027945,30]
[391638954,1760712694619,-1458.22,0.00027945,7]
[391638955,1760712694630,-500.0,0.00027945,17]
[391638956,1760712694640,-721.32,0.00027945,2]
[391638957,1760712694649,-505.59,0.00027945,2]
[391638958,1760712694660,-837.59,0.00027945,17]
[391638959,1760712694671,-2355.17,0.00027945,17]
[391638960,1760712694681,-513.36,0.00027945,17]
[391638961,1760712694691,-500.0,0.00027945,17]
[391638962,1760712694701,-500.0,0.00027945,17]
[391638963,1760712694711,-500.0,0.00027945,17]
[391638964,1760712694720,-500.0,0.00027945,17]
[391638965,1760712694730,-1192.44,0.00027945,17]
[391638966,1760712694740,-654.23,0.00027945,17]
[391638967,1760712694750,-500.0,0.00027945,17]
[391638968,1760712694763,-2969.48,0.00027945,17]
[391638969,1760712694782,-500.0,0.00027945,17]
[391638970,1760712694792,-500.0,0.00027945,17]
[391638971,1760712694803,-500.17,0.00027945,17]
[391638972,1760712694813,-1595.99,0.00027945,17]
[391638973,1760712694823,-500.0,0.00027945,17]
[391638974,1760712694832,-2220.63,0.00027945,17]
[391638975,1760712694842,-500.0,0.00027945,17]
[391638976,1760712694852,-500.0,0.00027945,17]
[391638977,1760712694864,-554.04,0.00027945,17]
[391638978,1760712694875,-619.82,0.00027945,17]
[391638979,1760712694884,-950.66,0.00027945,17]
[391638980,1760712694894,-1855.6,0.00027945,17]
[391638981,1760712694904,-722.3,0.00027945,17]
[391638982,1760712694915,-500.0,0.00027945,17]
[391638983,1760712694925,-500.0,0.00027945,17]
[391638984,1760712694935,-1437.69,0.00027945,17]
[391638985,1760712694945,-2212.04,0.00027945,17]
[391638986,1760712694956,-500.0,0.00027945,17]
[391638987,1760712694965,-1120.11,0.00027945,17]
[391638988,1760712694975,-500.0,0.00027945,17]
[391638989,1760712694984,-500.0,0.00027945,17]
[391638990,1760712694994,-500.0,0.00027945,17]
[391638991,1760712695004,-854.16,0.00027945,17]
[391638992,1760712695014,-632.58,0.00027945,17]
[391638993,1760712695024,-500.0,0.00027945,17]
[391638994,1760712695034,-870.27,0.00027945,17]
[391638995,1760712695043,-735.48,0.00027945,17]
[391638996,1760712695052,-500.0,0.00027945,17]
[391638997,1760712695062,-1633.1,0.00027945,17]
[391638998,1760712695071,-500.0,0.00027945,17]
[391638999,1760712695083,-500.0,0.00027945,17]
[391639000,1760712695092,-500.0,0.00027945,17]
[391639001,1760712695102,-500.0,0.00027945,17]
[391639002,1760712695113,-852.2,0.00027945,17]
[391639003,1760712695122,-665.63,0.00027945,17]